Workbook

Sheet поради
A1: ПОРАДИ ІЗ ШАБЛОНУ
A2: Швидкий перехід між аркушем підсумка тенденцій витрат і аркушами витрат за кожен місяць
A3: Щоб швидко перейти до витрат за певний місяць, виберіть відповідне посилання над діаграмою. Наприклад, посилання Січ у клітинці B2. Потім, щоб повернутися на аркуш тенденцій витрат, виберіть посилання Підсумок у клітинці D1.
A4: Щоб повернутися до цього аркуша порад, на аркуші підсумка виберіть посилання в клітинці N2, а на аркушах місяців – у клітинці E1.
A5: Додавання нового типу витрат до підсумка витрат або щомісячних витрат
A6: Підсумок витрат під діаграмою та відомості про витрати для кожного місяця розміщено в таблицях Excel. Щоб додати нові рядки до будь-якої таблиці Excel, виконайте одну з наведених нижче дій.
A7: =ROW(A1)&". Якщо в таблиці немає рядка підсумків, почніть вводити під таблицею, і вона автоматично розшириться, коли ви натиснете клавішу табуляції або Enter." -> 1. Якщо в таблиці немає рядка підсумків, почніть вводити під таблицею, і вона автоматично розшириться, коли ви натиснете клавішу табуляції або Enter.
A8: =ROW(A2)&". Розмістіть курсор в останній клітинці над рядком підсумків (наприклад, для останньої витрати) і натисніть клавішу табуляції." -> 2. Розмістіть курсор в останній клітинці над рядком підсумків (наприклад, для останньої витрати) і натисніть клавішу табуляції.
A9: =ROW(A3)&". Клацніть правою кнопкою миші в таблиці, у спливаючому меню наведіть вказівник на пункт ""Вставити"", а потім виберіть команду ""Рядки таблиці вище"" або ""Рядки таблиці нижче""." -> 3. Клацніть правою кнопкою миші в таблиці, у спливаючому меню наведіть вказівник на пункт "Вставити", а потім виберіть команду "Рядки таблиці вище" або "Рядки таблиці нижче".
A10: =ROW(A4)&". Щоб збільшити кількість доступних рядків таблиці, перетягніть униз маркер змінення розміру таблиці в її нижньому правому куті." -> 4. Щоб збільшити кількість доступних рядків таблиці, перетягніть униз маркер змінення розміру таблиці в її нижньому правому куті.
A11: Введіть витрату на аркуші підсумка в таблиці ПідсумокВитрат у стовпці Витрати.
A12: Додайте суму витрати кожного типу на аркуші того місяця, якого ця витрата стосується.
A13: Наприклад: "Витрата 1" відбувається із січня по червень, а також у грудні.
A14: =ROW(A1)&". Витрата 1 вводиться на аркуші підсумка в таблиці ""ПідсумокВитрат"" у стовпці ""Витрати"" (як заголовок для типу витрат)." -> 1. Витрата 1 вводиться на аркуші підсумка в таблиці "ПідсумокВитрат" у стовпці "Витрати" (як заголовок для типу витрат).
A15: =ROW(A2)&". Введіть суму витрати на відповідному аркуші для кожного місяця, коли її здійснено." -> 2. Введіть суму витрати на відповідному аркуші для кожного місяця, коли її здійснено.
A16: =ROW(A3)&". На аркуші кожного місяця для стовпця ""Категорія"" створюється список категорій на основі типу витрат з аркуша ""ПідсумокВитрат""." -> 3. На аркуші кожного місяця для стовпця "Категорія" створюється список категорій на основі типу витрат з аркуша "ПідсумокВитрат".
A17: =ROW(A4)&". У цьому списку категорій виберіть відповідний тип витрат для введеної суми." -> 4. У цьому списку категорій виберіть відповідний тип витрат для введеної суми.
A18: =ROW(A5)&". Щоб додати нові витрати за будь-який місяць, додайте новий рядок до таблиці ""ПідсумокВитрат"" на аркуші підсумків, а потім введіть відомості про витрати на аркуші відповідного місяця." -> 5. Щоб додати нові витрати за будь-який місяць, додайте новий рядок до таблиці "ПідсумокВитрат" на аркуші підсумків, а потім введіть відомості про витрати на аркуші відповідного місяця.

Sheet підсумок
A1: ТЕНДЕНЦІЇ ВИТРАТ
B2: Січ | C2: Лют | D2: Бер | E2: Кві | F2: Тра | G2: Чер | H2: Лип | I2: Сер | J2: Вер | K2: Жов | L2: Лис | M2: Гру | N2: Поради
A4: Витрати | B4: Січ | C4: Лют | D4: Бер | E4: Кві | F4: Тра | G4: Чер | H4: Лип | I4: Сер | J4: Вер | K4: Жов | L4: Лис | M4: Гру | N4: Підсумок | O4: Тенденція
A5: Витрата 1 | B5: =SUMIFS(ExpJan[Сума],ExpJan[Категорія],ПідсумокВитрат[Витрати]) -> 33.00 | C5: =SUMIFS(ExpFeb[Сума],ExpFeb[Категорія],ПідсумокВитрат[Витрати]) -> 375.00 | D5: =SUMIFS(ExpMar[Сума],ExpMar[Категорія],ПідсумокВитрат[Витрати]) -> 33.00 | E5: =SUMIFS(ExpApr[Сума],ExpApr[Категорія],ПідсумокВитрат[Витрати]) -> 45.00 | F5: =SUMIFS(ExpMay[Сума],ExpMay[Категорія],ПідсумокВитрат[Витрати]) -> 375.00 | G5: =SUMIFS(ExpJun[Сума],ExpJun[Категорія],ПідсумокВитрат[Витрати]) -> 201.00 | H5: =SUMIFS(ExpJul[Сума],ExpJul[Категорія],ПідсумокВитрат[Витрати]) -> 0.00 | I5: =SUMIFS(ExpAug[Сума],ExpAug[Категорія],ПідсумокВитрат[Витрати]) -> 0.00 | J5: =SUMIFS(ExpSep[Сума],ExpSep[Категорія],ПідсумокВитрат[Витрати]) -> 0.00 | K5: =SUMIFS(ExpOct[Сума],ExpOct[Категорія],ПідсумокВитрат[Витрати]) -> 0.00 | L5: =SUMIFS(ExpNov[Сума],ExpNov[Категорія],ПідсумокВитрат[Витрати]) -> 0.00 | M5: =SUMIFS(ExpDec[Сума],ExpDec[Категорія],ПідсумокВитрат[Витрати]) -> 201.00 | N5: =SUM(ПідсумокВитрат[[#This Row],[Січ]:[Гру]]) -> 1,263.00
A6: Витрата 2 | B6: =SUMIFS(ExpJan[Сума],ExpJan[Категорія],ПідсумокВитрат[Витрати]) -> 238.00 | C6: =SUMIFS(ExpFeb[Сума],ExpFeb[Категорія],ПідсумокВитрат[Витрати]) -> 238.00 | D6: =SUMIFS(ExpMar[Сума],ExpMar[Категорія],ПідсумокВитрат[Витрати]) -> 238.00 | E6: =SUMIFS(ExpApr[Сума],ExpApr[Категорія],ПідсумокВитрат[Витрати]) -> 123.00 | F6: =SUMIFS(ExpMay[Сума],ExpMay[Категорія],ПідсумокВитрат[Витрати]) -> 111.00 | G6: =SUMIFS(ExpJun[Сума],ExpJun[Категорія],ПідсумокВитрат[Витрати]) -> 98.00 | H6: =SUMIFS(ExpJul[Сума],ExpJul[Категорія],ПідсумокВитрат[Витрати]) -> 0.00 | I6: =SUMIFS(ExpAug[Сума],ExpAug[Категорія],ПідсумокВитрат[Витрати]) -> 0.00 | J6: =SUMIFS(ExpSep[Сума],ExpSep[Категорія],ПідсумокВитрат[Витрати]) -> 0.00 | K6: =SUMIFS(ExpOct[Сума],ExpOct[Категорія],ПідсумокВитрат[Витрати]) -> 0.00 | L6: =SUMIFS(ExpNov[Сума],ExpNov[Категорія],ПідсумокВитрат[Витрати]) -> 0.00 | M6: =SUMIFS(ExpDec[Сума],ExpDec[Категорія],ПідсумокВитрат[Витрати]) -> 440.00 | N6: =SUM(ПідсумокВитрат[[#This Row],[Січ]:[Гру]]) -> 1,486.00
A7: Витрата 3 | B7: =SUMIFS(ExpJan[Сума],ExpJan[Категорія],ПідсумокВитрат[Витрати]) -> 110.00 | C7: =SUMIFS(ExpFeb[Сума],ExpFeb[Категорія],ПідсумокВитрат[Витрати]) -> 110.00 | D7: =SUMIFS(ExpMar[Сума],ExpMar[Категорія],ПідсумокВитрат[Витрати]) -> 110.00 | E7: =SUMIFS(ExpApr[Сума],ExpApr[Категорія],ПідсумокВитрат[Витрати]) -> 125.00 | F7: =SUMIFS(ExpMay[Сума],ExpMay[Категорія],ПідсумокВитрат[Витрати]) -> 333.00 | G7: =SUMIFS(ExpJun[Сума],ExpJun[Категорія],ПідсумокВитрат[Витрати]) -> 122.00 | H7: =SUMIFS(ExpJul[Сума],ExpJul[Категорія],ПідсумокВитрат[Витрати]) -> 0.00 | I7: =SUMIFS(ExpAug[Сума],ExpAug[Категорія],ПідсумокВитрат[Витрати]) -> 0.00 | J7: =SUMIFS(ExpSep[Сума],ExpSep[Категорія],ПідсумокВитрат[Витрати]) -> 0.00 | K7: =SUMIFS(ExpOct[Сума],ExpOct[Категорія],ПідсумокВитрат[Витрати]) -> 0.00 | L7: =SUMIFS(ExpNov[Сума],ExpNov[Категорія],ПідсумокВитрат[Витрати]) -> 0.00 | M7: =SUMIFS(ExpDec[Сума],ExpDec[Категорія],ПідсумокВитрат[Витрати]) -> 122.00 | N7: =SUM(ПідсумокВитрат[[#This Row],[Січ]:[Гру]]) -> 1,032.00
A8: Витрата 4 | B8: =SUMIFS(ExpJan[Сума],ExpJan[Категорія],ПідсумокВитрат[Витрати]) -> 426.00 | C8: =SUMIFS(ExpFeb[Сума],ExpFeb[Категорія],ПідсумокВитрат[Витрати]) -> 84.00 | D8: =SUMIFS(ExpMar[Сума],ExpMar[Категорія],ПідсумокВитрат[Витрати]) -> 84.00 | E8: =SUMIFS(ExpApr[Сума],ExpApr[Категорія],ПідсумокВитрат[Витрати]) -> 426.00 | F8: =SUMIFS(ExpMay[Сума],ExpMay[Категорія],ПідсумокВитрат[Витрати]) -> 125.00 | G8: =SUMIFS(ExpJun[Сума],ExpJun[Категорія],ПідсумокВитрат[Витрати]) -> 187.00 | H8: =SUMIFS(ExpJul[Сума],ExpJul[Категорія],ПідсумокВитрат[Витрати]) -> 0.00 | I8: =SUMIFS(ExpAug[Сума],ExpAug[Категорія],ПідсумокВитрат[Витрати]) -> 0.00 | J8: =SUMIFS(ExpSep[Сума],ExpSep[Категорія],ПідсумокВитрат[Витрати]) -> 0.00 | K8: =SUMIFS(ExpOct[Сума],ExpOct[Категорія],ПідсумокВитрат[Витрати]) -> 0.00 | L8: =SUMIFS(ExpNov[Сума],ExpNov[Категорія],ПідсумокВитрат[Витрати]) -> 0.00 | M8: =SUMIFS(ExpDec[Сума],ExpDec[Категорія],ПідсумокВитрат[Витрати]) -> 187.00 | N8: =SUM(ПідсумокВитрат[[#This Row],[Січ]:[Гру]]) -> 1,519.00
A9: Витрата 5 | B9: =SUMIFS(ExpJan[Сума],ExpJan[Категорія],ПідсумокВитрат[Витрати]) -> 54.00 | C9: =SUMIFS(ExpFeb[Сума],ExpFeb[Категорія],ПідсумокВитрат[Витрати]) -> 54.00 | D9: =SUMIFS(ExpMar[Сума],ExpMar[Категорія],ПідсумокВитрат[Витрати]) -> 109.00 | E9: =SUMIFS(ExpApr[Сума],ExpApr[Категорія],ПідсумокВитрат[Витрати]) -> 98.00 | F9: =SUMIFS(ExpMay[Сума],ExpMay[Категорія],ПідсумокВитрат[Витрати]) -> 33.00 | G9: =SUMIFS(ExpJun[Сума],ExpJun[Категорія],ПідсумокВитрат[Витрати]) -> 441.00 | H9: =SUMIFS(ExpJul[Сума],ExpJul[Категорія],ПідсумокВитрат[Витрати]) -> 0.00 | I9: =SUMIFS(ExpAug[Сума],ExpAug[Категорія],ПідсумокВитрат[Витрати]) -> 0.00 | J9: =SUMIFS(ExpSep[Сума],ExpSep[Категорія],ПідсумокВитрат[Витрати]) -> 0.00 | K9: =SUMIFS(ExpOct[Сума],ExpOct[Категорія],ПідсумокВитрат[Витрати]) -> 0.00 | L9: =SUMIFS(ExpNov[Сума],ExpNov[Категорія],ПідсумокВитрат[Витрати]) -> 0.00 | M9: =SUMIFS(ExpDec[Сума],ExpDec[Категорія],ПідсумокВитрат[Витрати]) -> 99.00 | N9: =SUM(ПідсумокВитрат[[#This Row],[Січ]:[Гру]]) -> 888.00
A10: Підсумок | B10: =SUBTOTAL(109,ПідсумокВитрат[Січ]) -> 861.00 | C10: =SUBTOTAL(109,ПідсумокВитрат[Лют]) -> 861.00 | D10: =SUBTOTAL(109,ПідсумокВитрат[Бер]) -> 574.00 | E10: =SUBTOTAL(109,ПідсумокВитрат[Кві]) -> 817.00 | F10: =SUBTOTAL(109,ПідсумокВитрат[Тра]) -> 977.00 | G10: =SUBTOTAL(109,ПідсумокВитрат[Чер]) -> 1,049.00 | H10: =SUBTOTAL(109,ПідсумокВитрат[Лип]) -> 0.00 | I10: =SUBTOTAL(109,ПідсумокВитрат[Сер]) -> 0.00 | J10: =SUBTOTAL(109,ПідсумокВитрат[Вер]) -> 0.00 | K10: =SUBTOTAL(109,ПідсумокВитрат[Жов]) -> 0.00 | L10: =SUBTOTAL(109,ПідсумокВитрат[Лис]) -> 0.00 | M10: =SUBTOTAL(109,ПідсумокВитрат[Гру]) -> 1,049.00 | N10: =SUBTOTAL(109,ПідсумокВитрат[Підсумок]) -> 6,188.00

Sheet січ
A1: ВИТРАТИ В СІЧНІ | D1: Підсумок | E1: Поради
A2: Дата | B2: Замовл. на придб. № | C2: Сума | D2: Категорія | E2: Опис
A3: =DATE(YEAR(TODAY()),1,4) -> 2016-01-04 | B3: A-12345 | C3: 33.00 | D3: Витрата 1 | E3: Матеріали
A4: =DATE(YEAR(TODAY()),1,5) -> 2016-01-05 | B4: A-12346 | C4: 238.00 | D4: Витрата 2
C5: 342.00 | D5: Витрата 4
C6: 110.00 | D6: Витрата 3
C7: 84.00 | D7: Витрата 4
C8: 54.00 | D8: Витрата 5
A9: Підсумок | C9: =SUBTOTAL(109,ExpJan[Сума]) -> 861.00

Sheet лют
A1: ВИТРАТИ В ЛЮТОМУ | D1: Підсумок | E1: Поради
A2: Дата | B2: Замовл. на придб. № | C2: Сума | D2: Категорія | E2: Опис
A3: =DATE(YEAR(TODAY()),2,3) -> 2016-02-03 | B3: A-12345 | C3: 33.00 | D3: Витрата 1 | E3: Матеріали
A4: =DATE(YEAR(TODAY()),2,4) -> 2016-02-04 | B4: A-12346 | C4: 238.00 | D4: Витрата 2
C5: 342.00 | D5: Витрата 1
C6: 110.00 | D6: Витрата 3
C7: 84.00 | D7: Витрата 4
C8: 54.00 | D8: Витрата 5
A9: Підсумок | C9: =SUBTOTAL(109,ExpFeb[Сума]) -> 861.00

Sheet бер
A1: ВИТРАТИ В БЕРЕЗНІ | D1: Підсумок | E1: Поради
A2: Дата | B2: Замовл. на придб. № | C2: Сума | D2: Категорія | E2: Опис
A3: =DATE(YEAR(TODAY()),3,5) -> 2016-03-05 | B3: A-12345 | C3: 33.00 | D3: Витрата 1 | E3: Матеріали
A4: =DATE(YEAR(TODAY()),3,6) -> 2016-03-06 | B4: A-12346 | C4: 238.00 | D4: Витрата 2
C5: 55.00 | D5: Витрата 5
C6: 110.00 | D6: Витрата 3
C7: 84.00 | D7: Витрата 4
C8: 54.00 | D8: Витрата 5
A9: Підсумок | C9: =SUBTOTAL(109,ExpMar[Сума]) -> 574.00

Sheet кві
A1: ВИТРАТИ У КВІТНІ | D1: Підсумок | E1: Поради
A2: Дата | B2: Замовл. на придб. № | C2: Сума | D2: Категорія | E2: Опис
A3: =DATE(YEAR(TODAY()),4,4) -> 2016-04-04 | B3: A-12345 | C3: 45.00 | D3: Витрата 1 | E3: Матеріали
A4: =DATE(YEAR(TODAY()),4,8) -> 2016-04-08 | B4: A-12346 | C4: 123.00 | D4: Витрата 2
C5: 342.00 | D5: Витрата 4
C6: 125.00 | D6: Витрата 3
C7: 84.00 | D7: Витрата 4
C8: 98.00 | D8: Витрата 5
A9: Підсумок | C9: =SUBTOTAL(109,ExpApr[Сума]) -> 817.00

Sheet тра
A1: ВИТРАТИ В ТРАВНІ | D1: Підсумок | E1: Поради
A2: Дата | B2: Замовл. на придб. № | C2: Сума | D2: Категорія | E2: Опис
A3: =DATE(YEAR(TODAY()),5,3) -> 2016-05-03 | B3: A-12345 | C3: 33.00 | D3: Витрата 1 | E3: Матеріали
A4: =DATE(YEAR(TODAY()),5,8) -> 2016-05-08 | B4: A-12346 | C4: 111.00 | D4: Витрата 2
C5: 342.00 | D5: Витрата 1
C6: 333.00 | D6: Витрата 3
C7: 125.00 | D7: Витрата 4
C8: 33.00 | D8: Витрата 5
A9: Підсумок | C9: =SUBTOTAL(109,ExpMay[Сума]) -> 977.00

Sheet чер
A1: ВИТРАТІ В ЧЕРВНІ | D1: Підсумок | E1: Поради
A2: Дата | B2: Замовл. на придб. № | C2: Сума | D2: Категорія | E2: Опис
A3: =DATE(YEAR(TODAY()),6,7) -> 2016-06-07 | B3: A-12345 | C3: 201.00 | D3: Витрата 1 | E3: Матеріали
A4: =DATE(YEAR(TODAY()),6,8) -> 2016-06-08 | B4: A-12346 | C4: 98.00 | D4: Витрата 2
C5: 342.00 | D5: Витрата 5
C6: 122.00 | D6: Витрата 3
C7: 187.00 | D7: Витрата 4
C8: 99.00 | D8: Витрата 5
A9: Підсумок | C9: =SUBTOTAL(109,ExpJun[Сума]) -> 1,049.00

Sheet лип
A1: ВИТРАТІ В ЛИПНІ | D1: Підсумок | E1: Поради
A2: Дата | B2: Замовл. на придб. № | C2: Сума | D2: Категорія | E2: Опис
A3: =DATE(YEAR(TODAY()),7,9) -> 2016-07-09 | B3: A-12345 | D3: Витрата 1 | E3: Матеріали
A4: =DATE(YEAR(TODAY()),7,14) -> 2016-07-14 | B4: A-12346 | D4: Витрата 2
D5: Витрата 2
D6: Витрата 3
D7: Витрата 4
D8: Витрата 5
A9: Підсумок | C9: =SUBTOTAL(109,ExpJul[Сума]) -> 0.00

Sheet сер
A1: ВИТРАТИ В СЕРПНІ | D1: Підсумок | E1: Поради
A2: Дата | B2: Замовл. на придб. № | C2: Сума | D2: Категорія | E2: Опис
A3: =DATE(YEAR(TODAY()),8,8) -> 2016-08-08 | B3: A-12345 | D3: Витрата 1 | E3: Матеріали
A4: =DATE(YEAR(TODAY()),8,9) -> 2016-08-09 | B4: A-12346 | D4: Витрата 2
D5: Витрата 2
D6: Витрата 3
D7: Витрата 4
D8: Витрата 5
A9: Підсумок | C9: =SUBTOTAL(109,ExpAug[Сума]) -> 0.00

Sheet вер
A1: ВИТРАТИ У ВЕРЕСНІ | D1: Підсумок | E1: Поради
A2: Дата | B2: Замовл. на придб. № | C2: Сума | D2: Категорія | E2: Опис
A3: =DATE(YEAR(TODAY()),9,9) -> 2016-09-09 | B3: A-12345 | D3: Витрата 1 | E3: Матеріали
A4: =DATE(YEAR(TODAY()),9,15) -> 2016-09-15 | B4: A-12346 | D4: Витрата 2
D5: Витрата 2
D6: Витрата 3
D7: Витрата 4
D8: Витрата 5
A9: Підсумок | C9: =SUBTOTAL(109,ExpSep[Сума]) -> 0.00

Sheet жов
A1: ВИТРАТИ В ЖОВТНІ | D1: Підсумок | E1: Поради
A2: Дата | B2: Замовл. на придб. № | C2: Сума | D2: Категорія | E2: Опис
A3: =DATE(YEAR(TODAY()),10,10) -> 2016-10-10 | B3: A-12345 | D3: Витрата 1 | E3: Матеріали
A4: =DATE(YEAR(TODAY()),10,21) -> 2016-10-21 | B4: A-12346 | D4: Витрата 2
D5: Витрата 2
D6: Витрата 3
D7: Витрата 4
D8: Витрата 5
A9: Підсумок | C9: =SUBTOTAL(109,ExpOct[Сума]) -> 0.00

Sheet лис
A1: ВИТРАТИ В ЛИСТОПАДІ | D1: Підсумок | E1: Поради
A2: Дата | B2: Замовл. на придб. № | C2: Сума | D2: Категорія | E2: Опис
A3: =DATE(YEAR(TODAY()),11,14) -> 2016-11-14 | B3: A-12345 | D3: Витрата 1 | E3: Матеріали
A4: =DATE(YEAR(TODAY()),11,21) -> 2016-11-21 | B4: A-12346 | D4: Витрата 2
D5: Витрата 2
D6: Витрата 3
D7: Витрата 4
D8: Витрата 5
A9: Підсумок | C9: =SUBTOTAL(109,ExpNov[Сума]) -> 0.00

Sheet гру
A1: ВИТРАТИ В ГРУДНІ | D1: Підсумок | E1: Поради
A2: Дата | B2: Замовл. на придб. № | C2: Сума | D2: Категорія | E2: Опис
A3: =DATE(YEAR(TODAY()),12,2) -> 2016-12-02 | B3: A-12345 | C3: 201.00 | D3: Витрата 1 | E3: Матеріали
A4: =DATE(YEAR(TODAY()),12,24) -> 2016-12-24 | B4: A-12346 | C4: 98.00 | D4: Витрата 2
C5: 342.00 | D5: Витрата 2
C6: 122.00 | D6: Витрата 3
C7: 187.00 | D7: Витрата 4
C8: 99.00 | D8: Витрата 5
A9: Підсумок | C9: =SUBTOTAL(109,ExpDec[Сума]) -> 1,049.00
